[Event "Early-Titled-Tuesday-Blitz-January-16-2024"]
[Site "Chess.com"]
[Date "2024.01.16"]
[Round "8"]
[White "wonderfultime"]
[Black "Volodar_Murzin"]
[Result "1-0"]
[WhiteElo "3008"]
[BlackElo "2933"]
[TimeControl "180+1"]
[EndTime "9:34:02 PST"]
[Termination "wonderfultime won by resignation"]

1. d4 {[%clk 0:02:59.7]} 1... d5 {[%clk 0:02:58.9]} 2. Nf3 {[%clk 0:02:59.7]}
2... Nf6 {[%clk 0:02:58.6]} 3. Bf4 {[%clk 0:03:00.4]} 3... Bf5 {[%clk 0:02:59]}
4. c4 {[%clk 0:02:59.8]} 4... e6 {[%clk 0:02:53.4]} 5. Nc3 {[%clk 0:03:00]} 5...
c6 {[%clk 0:02:50.8]} 6. Qb3 {[%clk 0:02:57.6]} 6... Qe7 {[%clk 0:02:17.5]} 7.
e3 {[%clk 0:02:35.3]} 7... Qb4 {[%clk 0:02:15.4]} 8. c5 {[%clk 0:02:17.5]} 8...
a5 {[%clk 0:02:14.5]} 9. Be2 {[%clk 0:02:13.1]} 9... Nbd7 {[%clk 0:02:10.6]} 10.
O-O {[%clk 0:02:11.1]} 10... Ne4 {[%clk 0:02:04.1]} 11. Rfc1 {[%clk 0:01:56.9]}
11... Be7 {[%clk 0:01:53.5]} 12. Qd1 {[%clk 0:01:26.6]} 12... a4 {[%clk
0:01:51.4]} 13. a3 {[%clk 0:01:21.4]} 13... Qa5 {[%clk 0:01:36.3]} 14. Nxe4
{[%clk 0:01:21.3]} 14... Bxe4 {[%clk 0:01:36.1]} 15. b4 {[%clk 0:01:20.9]} 15...
axb3 {[%clk 0:01:22.9]} 16. Qxb3 {[%clk 0:01:21.5]} 16... Ra7 {[%clk 0:01:23.5]}
17. h3 {[%clk 0:01:08.8]} 17... O-O {[%clk 0:01:22.8]} 18. Ra2 {[%clk
0:01:05.7]} 18... Rfa8 {[%clk 0:01:17.1]} 19. a4 {[%clk 0:00:57.6]} 19... h6
{[%clk 0:01:12.6]} 20. Bg3 {[%clk 0:00:57.8]} 20... Bd8 {[%clk 0:01:05.4]} 21.
Nd2 {[%clk 0:00:54.4]} 21... Bg6 {[%clk 0:01:03.3]} 22. Qb2 {[%clk 0:00:47.3]}
22... Bf6 {[%clk 0:00:58.5]} 23. Bd6 {[%clk 0:00:33.1]} 23... Qd8 {[%clk
0:00:53.1]} 24. Qb4 {[%clk 0:00:33.4]} 24... e5 {[%clk 0:00:48.6]} 25. Nb3
{[%clk 0:00:33.7]} 25... exd4 {[%clk 0:00:46.3]} 26. exd4 {[%clk 0:00:34.1]}
26... Nf8 {[%clk 0:00:46.5]} 27. Bg4 {[%clk 0:00:30.9]} 27... h5 {[%clk
0:00:43.2]} 28. Bf3 {[%clk 0:00:30.9]} 28... Ne6 {[%clk 0:00:43.6]} 29. a5
{[%clk 0:00:27.8]} 29... Bd3 {[%clk 0:00:27.9]} 30. Bxh5 {[%clk 0:00:22.5]}
30... Bc4 {[%clk 0:00:28.5]} 31. Rxc4 {[%clk 0:00:21.2]} 31... dxc4 {[%clk
0:00:29.4]} 32. Qxc4 {[%clk 0:00:22.1]} 32... Be7 {[%clk 0:00:28.6]} 33. Re2
{[%clk 0:00:17.7]} 33... Bxd6 {[%clk 0:00:20.4]} 34. Bxf7+ {[%clk 0:00:17.2]}
34... Kh8 {[%clk 0:00:14.7]} 35. Qxe6 {[%clk 0:00:14.8]} 35... Bf4 {[%clk
0:00:13.4]} 36. Bg6 {[%clk 0:00:11.3]} 36... Qf6 {[%clk 0:00:11.4]} 37. Qg4
{[%clk 0:00:09.3]} 37... Bh6 {[%clk 0:00:10.6]} 38. Re6 {[%clk 0:00:07.6]} 38...
Qf4 {[%clk 0:00:09.5]} 39. Qe2 {[%clk 0:00:07.6]} 39... Rf8 {[%clk 0:00:07.1]}
40. g3 {[%clk 0:00:08.1]} 40... Qg5 {[%clk 0:00:06.6]} 41. h4 {[%clk 0:00:08.7]}
41... Qd5 {[%clk 0:00:07.3]} 42. Bc2 {[%clk 0:00:06.7]} 42... Raa8 {[%clk
0:00:06.5]} 43. Qd3 {[%clk 0:00:06.2]} 43... Kg8 {[%clk 0:00:04.6]} 44. Re7
{[%clk 0:00:06]} 44... Rf6 {[%clk 0:00:03.1]} 45. Qh7+ {[%clk 0:00:06.4]} 45...
Kf8 {[%clk 0:00:03.8]} 46. Re5 {[%clk 0:00:07.1]} 46... Qf7 {[%clk 0:00:03.9]}
47. f4 {[%clk 0:00:05.1]} 47... Rd8 {[%clk 0:00:04.5]} 48. Qh8+ {[%clk
0:00:04.7]} 48... Qg8 {[%clk 0:00:05.2]} 49. Qxg8+ {[%clk 0:00:05.3]} 49... Kxg8
{[%clk 0:00:06.1]} 50. Kg2 {[%clk 0:00:05.6]} 50... Kf8 {[%clk 0:00:06.6]} 51.
Bd3 {[%clk 0:00:06.2]} 51... g6 {[%clk 0:00:05.2]} 52. Bc4 {[%clk 0:00:06.8]}
52... Bg7 {[%clk 0:00:05.4]} 53. Re4 {[%clk 0:00:07.4]} 53... Rf5 {[%clk
0:00:04.4]} 54. Kf3 {[%clk 0:00:07.8]} 54... Rf6 {[%clk 0:00:03.5]} 55. g4
{[%clk 0:00:08.1]} 55... Bh8 {[%clk 0:00:01.9]} 56. g5 {[%clk 0:00:08.4]} 56...
Rf5 {[%clk 0:00:02.4]} 57. Be6 {[%clk 0:00:08.6]} 57... Rf7 {[%clk 0:00:02.7]}
58. Bxf7 {[%clk 0:00:08.9]} 58... Kxf7 {[%clk 0:00:03.6]} 59. Kg4 {[%clk
0:00:09.5]} 59... Bg7 {[%clk 0:00:03.5]} 60. h5 {[%clk 0:00:10]} 60... gxh5+
{[%clk 0:00:03.8]} 61. Kxh5 {[%clk 0:00:10.9]} 61... Rh8+ {[%clk 0:00:03.4]} 62.
Kg4 {[%clk 0:00:11.6]} 62... Rh1 {[%clk 0:00:04.3]} 63. Nd2 {[%clk 0:00:11.7]}
63... Rd1 {[%clk 0:00:03.9]} 64. Nf3 {[%clk 0:00:12.1]} 64... Ra1 {[%clk
0:00:04.4]} 65. Kf5 {[%clk 0:00:11.5]} 65... Kf8 {[%clk 0:00:05.3]} 66. g6
{[%clk 0:00:10.7]} 66... Rxa5 {[%clk 0:00:06.2]} 67. Ng5 {[%clk 0:00:10.6]}
67... b6 {[%clk 0:00:06.2]} 68. Ne6+ {[%clk 0:00:09.5]} 68... Kg8 {[%clk
0:00:07.1]} 69. Nxg7 {[%clk 0:00:10]} 69... Kxg7 {[%clk 0:00:08]} 70. Re7+
{[%clk 0:00:10.6]} 70... Kf8 {[%clk 0:00:07.9]} 71. Kf6 {[%clk 0:00:10.7]} 71...
bxc5 {[%clk 0:00:06.7]} 72. g7+ {[%clk 0:00:11.1]} 1-0

[Event "Early-Titled-Tuesday-Blitz-January-16-2024"]
[Site "Chess.com"]
[Date "2024.01.16"]
[Round "8"]
[White "IngOscarArdila"]
[Black "Ural_bogatyr"]
[Result "1/2-1/2"]
[WhiteElo "2371"]
[BlackElo "2528"]
[TimeControl "180+1"]
[EndTime "9:34:03 PST"]
[Termination "Game drawn - timeout vs insufficient material"]

1. d4 {[%clk 0:02:59.9]} 1... Nf6 {[%clk 0:02:58.8]} 2. c4 {[%clk 0:03:00]} 2...
e6 {[%clk 0:02:58.6]} 3. Nc3 {[%clk 0:03:00.3]} 3... Bb4 {[%clk 0:02:58.2]} 4.
Qc2 {[%clk 0:03:00.7]} 4... O-O {[%clk 0:02:58]} 5. Nf3 {[%clk 0:03:01.1]} 5...
c5 {[%clk 0:02:55.7]} 6. dxc5 {[%clk 0:03:00.4]} 6... Nc6 {[%clk 0:02:54]} 7.
Bg5 {[%clk 0:02:58.3]} 7... h6 {[%clk 0:02:53.4]} 8. Bh4 {[%clk 0:02:56.9]} 8...
Bxc5 {[%clk 0:02:51.5]} 9. e3 {[%clk 0:02:56.3]} 9... b6 {[%clk 0:02:48]} 10.
Be2 {[%clk 0:02:55.9]} 10... Bb7 {[%clk 0:02:47.7]} 11. O-O {[%clk 0:02:56]}
11... Be7 {[%clk 0:02:46.7]} 12. a3 {[%clk 0:02:54.9]} 12... Rc8 {[%clk
0:02:46]} 13. Rfd1 {[%clk 0:02:54.4]} 13... Na5 {[%clk 0:02:43.4]} 14. b3 {[%clk
0:02:52.8]} 14... d5 {[%clk 0:02:42]} 15. Qb2 {[%clk 0:02:44.1]} 15... Qc7
{[%clk 0:02:27.8]} 16. Bg3 {[%clk 0:02:40.3]} 16... Qd8 {[%clk 0:02:21.6]} 17.
Rac1 {[%clk 0:02:36]} 17... a6 {[%clk 0:02:19.3]} 18. cxd5 {[%clk 0:02:34.2]}
18... exd5 {[%clk 0:02:17.9]} 19. Nd4 {[%clk 0:02:31.6]} 19... Bd6 {[%clk
0:02:10.5]} 20. Bxd6 {[%clk 0:02:19]} 20... Qxd6 {[%clk 0:02:10.3]} 21. Bf3
{[%clk 0:02:17.6]} 21... Rfd8 {[%clk 0:02:09.2]} 22. Nce2 {[%clk 0:02:16]} 22...
Qe5 {[%clk 0:02:02.9]} 23. h3 {[%clk 0:02:03.9]} 23... Ne4 {[%clk 0:01:57.8]}
24. Nc3 {[%clk 0:01:54.4]} 24... f5 {[%clk 0:01:55.4]} 25. Nxe4 {[%clk
0:01:45.9]} 25... dxe4 {[%clk 0:01:52.5]} 26. Be2 {[%clk 0:01:41.1]} 26... b5
{[%clk 0:01:51.5]} 27. Rxc8 {[%clk 0:01:38.8]} 27... Rxc8 {[%clk 0:01:50.4]} 28.
Rc1 {[%clk 0:01:39.2]} 28... Rd8 {[%clk 0:01:40.6]} 29. Rc3 {[%clk 0:01:24.6]}
29... Bd5 {[%clk 0:01:37.4]} 30. Qc2 {[%clk 0:01:21.7]} 30... Kh7 {[%clk
0:01:36]} 31. g3 {[%clk 0:01:17.7]} 31... Bg8 {[%clk 0:01:21.2]} 32. Rc5 {[%clk
0:01:14.3]} 32... Rd5 {[%clk 0:01:20.5]} 33. Rc7 {[%clk 0:01:10.5]} 33... Rxd4
{[%clk 0:01:14.8]} 34. exd4 {[%clk 0:01:10.6]} 34... Qxd4 {[%clk 0:01:15.7]} 35.
Qc3 {[%clk 0:00:51.6]} 35... Qxc3 {[%clk 0:01:12.5]} 36. Rxc3 {[%clk 0:00:52.5]}
36... Bxb3 {[%clk 0:01:12.1]} 37. g4 {[%clk 0:00:47.1]} 37... Kg6 {[%clk
0:01:07.8]} 38. gxf5+ {[%clk 0:00:46.6]} 38... Kxf5 {[%clk 0:01:08.7]} 39. Bg4+
{[%clk 0:00:46.8]} 39... Kf6 {[%clk 0:01:05.2]} 40. Rc7 {[%clk 0:00:45.5]} 40...
Nc4 {[%clk 0:00:53]} 41. Rc6+ {[%clk 0:00:44.8]} 41... Kg5 {[%clk 0:00:51.3]}
42. Rxa6 {[%clk 0:00:44.3]} 42... h5 {[%clk 0:00:50.5]} 43. Be2 {[%clk
0:00:43.3]} 43... Kf4 {[%clk 0:00:43.3]} 44. Kg2 {[%clk 0:00:37.6]} 44... g5
{[%clk 0:00:41.5]} 45. Bxh5 {[%clk 0:00:25.5]} 45... e3 {[%clk 0:00:34]} 46. Be2
{[%clk 0:00:18.7]} 46... exf2 {[%clk 0:00:26.7]} 47. Kxf2 {[%clk 0:00:19.1]}
47... Nd2 {[%clk 0:00:20.9]} 48. Bxb5 {[%clk 0:00:16.6]} 48... Ne4+ {[%clk
0:00:21.5]} 49. Kg2 {[%clk 0:00:15.8]} 49... Bd1 {[%clk 0:00:21]} 50. Bc6 {[%clk
0:00:10.1]} 50... Bf3+ {[%clk 0:00:20.9]} 51. Kg1 {[%clk 0:00:10.3]} 51... Kg3
{[%clk 0:00:16.3]} 52. Bxe4 {[%clk 0:00:10.1]} 52... Bxe4 {[%clk 0:00:17.2]} 53.
Ra5 {[%clk 0:00:08.3]} 53... Kf4 {[%clk 0:00:14.4]} 54. Kh2 {[%clk 0:00:07.8]}
54... Bd3 {[%clk 0:00:12]} 55. Ra7 {[%clk 0:00:06.2]} 55... g4 {[%clk
0:00:10.2]} 56. hxg4 {[%clk 0:00:04.8]} 56... Kxg4 {[%clk 0:00:11.1]} 57. Kg2
{[%clk 0:00:05.3]} 57... Kf4 {[%clk 0:00:11.3]} 58. Kf2 {[%clk 0:00:06.1]} 58...
Ke4 {[%clk 0:00:11.6]} 59. Ke1 {[%clk 0:00:06.4]} 59... Kd4 {[%clk 0:00:12.2]}
60. Kd1 {[%clk 0:00:06.8]} 60... Kc3 {[%clk 0:00:12.3]} 61. Kc1 {[%clk
0:00:07.4]} 61... Bc4 {[%clk 0:00:10]} 62. Kb1 {[%clk 0:00:07.1]} 62... Kb3
{[%clk 0:00:09.6]} 63. Kc1 {[%clk 0:00:06.3]} 63... Kc3 {[%clk 0:00:09.5]} 64.
Kd1 {[%clk 0:00:05.5]} 64... Bd3 {[%clk 0:00:09.7]} 65. Ke1 {[%clk 0:00:05.3]}
65... Bb5 {[%clk 0:00:06.9]} 66. Kf2 {[%clk 0:00:06.2]} 66... Kb3 {[%clk
0:00:07]} 67. Ke3 {[%clk 0:00:03]} 67... Ba4 {[%clk 0:00:07]} 68. Kd4 {[%clk
0:00:03]} 68... Be8 {[%clk 0:00:04.5]} 69. Ra8 {[%clk 0:00:01.9]} 69... Bc6
{[%clk 0:00:04.3]} 1/2-1/2

[Event "Early-Titled-Tuesday-Blitz-January-16-2024"]
[Site "Chess.com"]
[Date "2024.01.16"]
[Round "8"]
[White "SarochaChuemsakul"]
[Black "ScofieldMichael01"]
[Result "1-0"]
[WhiteElo "2467"]
[BlackElo "2581"]
[TimeControl "180+1"]
[EndTime "9:34:13 PST"]
[Termination "SarochaChuemsakul won by checkmate"]

1. d4 {[%clk 0:02:55.1]} 1... Nf6 {[%clk 0:02:59.2]} 2. c4 {[%clk 0:02:55.4]}
2... c5 {[%clk 0:02:59.5]} 3. d5 {[%clk 0:02:55.4]} 3... b5 {[%clk 0:03:00]} 4.
Qc2 {[%clk 0:02:55.2]} 4... b4 {[%clk 0:02:59.2]} 5. e4 {[%clk 0:02:53.8]} 5...
d6 {[%clk 0:02:56.1]} 6. b3 {[%clk 0:02:54.1]} 6... g6 {[%clk 0:02:56.3]} 7. Bb2
{[%clk 0:02:54.7]} 7... Bg7 {[%clk 0:02:57.2]} 8. Nd2 {[%clk 0:02:55.2]} 8...
O-O {[%clk 0:02:57.7]} 9. Bd3 {[%clk 0:02:54.4]} 9... Nbd7 {[%clk 0:02:58.1]}
10. Ngf3 {[%clk 0:02:54.6]} 10... e5 {[%clk 0:02:57.7]} 11. dxe6 {[%clk
0:02:43.1]} 11... fxe6 {[%clk 0:02:58.6]} 12. a3 {[%clk 0:02:43.5]} 12... a5
{[%clk 0:02:54.3]} 13. axb4 {[%clk 0:02:28]} 13... cxb4 {[%clk 0:02:55.2]} 14.
e5 {[%clk 0:02:28.7]} 14... dxe5 {[%clk 0:02:35.1]} 15. Nxe5 {[%clk 0:02:29.6]}
15... Nxe5 {[%clk 0:02:31.2]} 16. Bxe5 {[%clk 0:02:27.7]} 16... Ng4 {[%clk
0:02:12.5]} 17. Bxg7 {[%clk 0:02:26.7]} 17... Kxg7 {[%clk 0:02:13.3]} 18. Nf3
{[%clk 0:02:03.7]} 18... Bb7 {[%clk 0:02:09.1]} 19. Be4 {[%clk 0:02:01.7]} 19...
Bxe4 {[%clk 0:01:16.7]} 20. Qxe4 {[%clk 0:02:01.5]} 20... Nf6 {[%clk 0:01:17.4]}
21. Qd4 {[%clk 0:01:43.2]} 21... Qc7 {[%clk 0:01:02.1]} 22. O-O {[%clk
0:01:42.9]} 22... Rad8 {[%clk 0:01:00.4]} 23. Qe5 {[%clk 0:01:29.1]} 23... Qxe5
{[%clk 0:00:46.7]} 24. Nxe5 {[%clk 0:01:28.7]} 24... Ne4 {[%clk 0:00:41.9]} 25.
Rxa5 {[%clk 0:01:23.3]} 25... Nd2 {[%clk 0:00:41.9]} 26. Ra7+ {[%clk 0:01:23.6]}
26... Kg8 {[%clk 0:00:38.4]} 27. Re1 {[%clk 0:01:12.4]} 27... Nxb3 {[%clk
0:00:36.5]} 28. Nc6 {[%clk 0:01:12.5]} 28... Rd2 {[%clk 0:00:30.1]} 29. f3
{[%clk 0:00:57.7]} 29... Nd4 {[%clk 0:00:18.2]} 30. Nxd4 {[%clk 0:00:42.6]}
30... Rxd4 {[%clk 0:00:19.1]} 31. Rxe6 {[%clk 0:00:43.3]} 31... Rf7 {[%clk
0:00:19.2]} 32. Ra8+ {[%clk 0:00:28.8]} 32... Kg7 {[%clk 0:00:18.9]} 33. c5
{[%clk 0:00:21.9]} 33... Rd2 {[%clk 0:00:17.8]} 34. Rb8 {[%clk 0:00:19.3]} 34...
Rb2 {[%clk 0:00:17]} 35. Reb6 {[%clk 0:00:19.3]} 35... Rd7 {[%clk 0:00:16.4]}
36. Rd6 {[%clk 0:00:18.1]} 36... Re7 {[%clk 0:00:15]} 37. Rd1 {[%clk 0:00:08.3]}
37... Ree2 {[%clk 0:00:15.2]} 38. Kh1 {[%clk 0:00:06.1]} 38... Rxg2 {[%clk
0:00:14.3]} 39. Rxb4 {[%clk 0:00:06.5]} 39... Rxh2+ {[%clk 0:00:14.7]} 40. Kg1
{[%clk 0:00:06.7]} 40... Rhg2+ {[%clk 0:00:15.6]} 41. Kh1 {[%clk 0:00:07.1]}
41... Rh2+ {[%clk 0:00:15.1]} 42. Kg1 {[%clk 0:00:07.6]} 42... Rxb4 {[%clk
0:00:14.9]} 43. Kxh2 {[%clk 0:00:07.6]} 43... Rc4 {[%clk 0:00:15.8]} 44. Rd5
{[%clk 0:00:07.5]} 44... Kf6 {[%clk 0:00:16.3]} 45. Kg3 {[%clk 0:00:07.9]} 45...
Ke6 {[%clk 0:00:16.5]} 46. Rd6+ {[%clk 0:00:06.9]} 46... Ke5 {[%clk 0:00:16.1]}
47. Rd7 {[%clk 0:00:06.4]} 47... h5 {[%clk 0:00:16.2]} 48. Rc7 {[%clk
0:00:06.3]} 48... h4+ {[%clk 0:00:14.4]} 49. Kh3 {[%clk 0:00:06.2]} 49... g5
{[%clk 0:00:15]} 50. Rc8 {[%clk 0:00:06.5]} 50... Kf4 {[%clk 0:00:13.3]} 51.
Rf8+ {[%clk 0:00:06.7]} 51... Ke3 {[%clk 0:00:13.7]} 52. Rf5 {[%clk 0:00:06.1]}
52... Rc1 {[%clk 0:00:06.4]} 53. Kg2 {[%clk 0:00:01.6]} 53... Rc2+ {[%clk
0:00:02.7]} 54. Kh3 {[%clk 0:00:02.2]} 54... Rc1 {[%clk 0:00:03.6]} 55. Kg2
{[%clk 0:00:02.8]} 55... h3+ {[%clk 0:00:02.5]} 56. Kxh3 {[%clk 0:00:03.1]}
56... Rf1 {[%clk 0:00:02]} 57. Kg2 {[%clk 0:00:03.4]} 57... Rf2+ {[%clk
0:00:02.5]} 58. Kg3 {[%clk 0:00:03.9]} 58... Rc2 {[%clk 0:00:03.4]} 59. Rxg5
{[%clk 0:00:04.4]} 59... Rc1 {[%clk 0:00:04.1]} 60. Re5+ {[%clk 0:00:04.9]}
60... Kd4 {[%clk 0:00:04.8]} 61. Rf5 {[%clk 0:00:05.3]} 61... Rg1+ {[%clk
0:00:04.7]} 62. Kf2 {[%clk 0:00:05.7]} 62... Rg8 {[%clk 0:00:05.5]} 63. c6
{[%clk 0:00:05.5]} 63... Rc8 {[%clk 0:00:04.4]} 64. Rf6 {[%clk 0:00:05.9]} 64...
Ke5 {[%clk 0:00:05.3]} 65. Rh6 {[%clk 0:00:06]} 65... Kf5 {[%clk 0:00:05.8]} 66.
Ke3 {[%clk 0:00:06.1]} 66... Kg5 {[%clk 0:00:06.7]} 67. Rd6 {[%clk 0:00:06.6]}
67... Kf5 {[%clk 0:00:07.6]} 68. Kd4 {[%clk 0:00:07]} 68... Rc7 {[%clk
0:00:07.9]} 69. Kd5 {[%clk 0:00:07.4]} 69... Rc8 {[%clk 0:00:07.4]} 70. Rd7
{[%clk 0:00:07.5]} 70... Ra8 {[%clk 0:00:07.6]} 71. c7 {[%clk 0:00:08]} 71...
Rc8 {[%clk 0:00:05.3]} 72. Kd6 {[%clk 0:00:08.2]} 72... Ra8 {[%clk 0:00:03.4]}
73. Rd8 {[%clk 0:00:08.6]} 73... Ra1 {[%clk 0:00:03.7]} 74. c8=Q+ {[%clk
0:00:08.7]} 74... Kf4 {[%clk 0:00:02.8]} 75. Qc4+ {[%clk 0:00:08.9]} 75... Kxf3
{[%clk 0:00:03.7]} 76. Rf8+ {[%clk 0:00:09.3]} 76... Kg2 {[%clk 0:00:03.2]} 77.
Qg4+ {[%clk 0:00:09.5]} 77... Kh2 {[%clk 0:00:04.1]} 78. Rh8# {[%clk 0:00:10.3]}
1-0

[Event "Early-Titled-Tuesday-Blitz-January-16-2024"]
[Site "Chess.com"]
[Date "2024.01.16"]
[Round "8"]
[White "AttilaTurzo"]
[Black "Roman_Ovetchkin"]
[Result "0-1"]
[WhiteElo "2490"]
[BlackElo "2664"]
[TimeControl "180+1"]
[EndTime "9:34:34 PST"]
[Termination "Roman_Ovetchkin won on time"]

1. d4 {[%clk 0:03:00.9]} 1... Nf6 {[%clk 0:02:59.3]} 2. Bf4 {[%clk 0:02:59.9]}
2... d6 {[%clk 0:02:59]} 3. c3 {[%clk 0:02:57.7]} 3... Nbd7 {[%clk 0:02:56.2]}
4. Nd2 {[%clk 0:02:53]} 4... e5 {[%clk 0:02:54.8]} 5. dxe5 {[%clk 0:02:52.3]}
5... dxe5 {[%clk 0:02:54.7]} 6. Bg5 {[%clk 0:02:49.9]} 6... h6 {[%clk
0:02:53.5]} 7. Bh4 {[%clk 0:02:48.2]} 7... Be7 {[%clk 0:02:53.6]} 8. e4 {[%clk
0:02:44.3]} 8... O-O {[%clk 0:02:52.5]} 9. Ngf3 {[%clk 0:02:42.9]} 9... Re8
{[%clk 0:02:38.2]} 10. Bc4 {[%clk 0:02:39.9]} 10... Nh5 {[%clk 0:02:23.4]} 11.
Bxe7 {[%clk 0:02:04.7]} 11... Qxe7 {[%clk 0:02:22.9]} 12. g3 {[%clk 0:02:04.2]}
12... Nhf6 {[%clk 0:02:13.8]} 13. O-O {[%clk 0:01:58.9]} 13... Nc5 {[%clk
0:02:13.3]} 14. Qc2 {[%clk 0:01:54.3]} 14... a5 {[%clk 0:02:10.8]} 15. Rfe1
{[%clk 0:01:52.5]} 15... a4 {[%clk 0:02:09.5]} 16. b4 {[%clk 0:01:50.4]} 16...
axb3 {[%clk 0:02:05.7]} 17. axb3 {[%clk 0:01:51.3]} 17... Rxa1 {[%clk
0:02:03.5]} 18. Rxa1 {[%clk 0:01:52.2]} 18... Bg4 {[%clk 0:02:02.6]} 19. Ne1
{[%clk 0:01:43.4]} 19... Qd7 {[%clk 0:01:57.3]} 20. b4 {[%clk 0:01:36.1]} 20...
Rd8 {[%clk 0:01:48.7]} 21. Ra2 {[%clk 0:01:33.7]} 21... Ne6 {[%clk 0:01:41.6]}
22. f3 {[%clk 0:01:32.3]} 22... Bh3 {[%clk 0:01:34.9]} 23. Nf1 {[%clk
0:01:08.6]} 23... b5 {[%clk 0:01:25.4]} 24. Bxe6 {[%clk 0:00:50.9]} 24... Bxe6
{[%clk 0:01:24.6]} 25. Ra1 {[%clk 0:00:49.7]} 25... c5 {[%clk 0:01:14.1]} 26.
bxc5 {[%clk 0:00:42.4]} 26... Qc7 {[%clk 0:01:14.3]} 27. Qf2 {[%clk 0:00:41.3]}
27... Nd7 {[%clk 0:01:08.9]} 28. Nd3 {[%clk 0:00:39.4]} 28... Bc4 {[%clk
0:01:08.5]} 29. Nb4 {[%clk 0:00:37.7]} 29... Nxc5 {[%clk 0:01:06.9]} 30. Ne3
{[%clk 0:00:33]} 30... Nd3 {[%clk 0:01:01.6]} 31. Nxd3 {[%clk 0:00:27.9]} 31...
Rxd3 {[%clk 0:01:02.5]} 32. Rc1 {[%clk 0:00:24.1]} 32... Be6 {[%clk 0:00:59]}
33. Nd1 {[%clk 0:00:18.9]} 33... b4 {[%clk 0:00:46.5]} 34. Qb2 {[%clk 0:00:14]}
34... Rxf3 {[%clk 0:00:40.5]} 35. cxb4 {[%clk 0:00:12.1]} 35... Qb6+ {[%clk
0:00:36.2]} 36. Rc5 {[%clk 0:00:12.1]} 36... f6 {[%clk 0:00:35.7]} 37. Nf2
{[%clk 0:00:12.2]} 37... Re3 {[%clk 0:00:33.8]} 38. Qd2 {[%clk 0:00:11.9]} 38...
Rb3 {[%clk 0:00:32.4]} 39. Kg2 {[%clk 0:00:11.7]} 39... Rxb4 {[%clk 0:00:32.4]}
40. Rc6 {[%clk 0:00:09.6]} 40... Qxc6 {[%clk 0:00:30.2]} 41. Qxb4 {[%clk
0:00:10.1]} 41... Kh7 {[%clk 0:00:30.5]} 42. Qe1 {[%clk 0:00:10.1]} 42... Qc2
{[%clk 0:00:29.2]} 43. Kg1 {[%clk 0:00:10.4]} 43... Bc4 {[%clk 0:00:26.7]} 44.
Qd1 {[%clk 0:00:10.3]} 44... Qxd1+ {[%clk 0:00:24.9]} 45. Nxd1 {[%clk
0:00:10.3]} 45... h5 {[%clk 0:00:21.5]} 46. Kf2 {[%clk 0:00:10.3]} 46... Kg6
{[%clk 0:00:21.1]} 47. Ke3 {[%clk 0:00:10.8]} 47... Kg5 {[%clk 0:00:20]} 48. Nf2
{[%clk 0:00:11]} 48... Bf1 {[%clk 0:00:19.6]} 49. Kf3 {[%clk 0:00:11.2]} 49...
h4 {[%clk 0:00:17.6]} 50. Ke3 {[%clk 0:00:11.4]} 50... g6 {[%clk 0:00:16.9]} 51.
Kf3 {[%clk 0:00:11.8]} 51... f5 {[%clk 0:00:14.2]} 52. Ke3 {[%clk 0:00:06.1]}
52... Bg2 {[%clk 0:00:10.9]} 53. exf5 {[%clk 0:00:03.3]} 53... gxf5 {[%clk
0:00:11.8]} 54. Nd3 {[%clk 0:00:03]} 54... hxg3 {[%clk 0:00:10.9]} 55. hxg3
{[%clk 0:00:03]} 55... Kf6 {[%clk 0:00:11.6]} 56. Nf2 {[%clk 0:00:02.8]} 56...
Bf1 {[%clk 0:00:11.3]} 57. Nd1 {[%clk 0:00:02]} 57... Kg5 {[%clk 0:00:08.1]} 58.
Kf2 {[%clk 0:00:02.4]} 58... Bc4 {[%clk 0:00:07.5]} 59. Ne3 {[%clk 0:00:02.9]}
59... Bd3 {[%clk 0:00:06.1]} 60. Nd5 {[%clk 0:00:03]} 60... Be4 {[%clk 0:00:06]}
61. Ne3 {[%clk 0:00:03.2]} 61... Bc6 {[%clk 0:00:06.1]} 62. Nc4 {[%clk
0:00:03.6]} 62... Kf6 {[%clk 0:00:05.8]} 63. Ne3 {[%clk 0:00:04.1]} 63... Ke6
{[%clk 0:00:06]} 64. Nc4 {[%clk 0:00:04.4]} 64... Be4 {[%clk 0:00:06.5]} 65. Ne3
{[%clk 0:00:04.8]} 65... Bd3 {[%clk 0:00:06.1]} 66. Nd1 {[%clk 0:00:04.8]} 66...
Bc2 {[%clk 0:00:06]} 67. Ne3 {[%clk 0:00:05.2]} 67... Be4 {[%clk 0:00:06.8]} 68.
Nd1 {[%clk 0:00:05.2]} 68... Kd5 {[%clk 0:00:07.1]} 69. Ne3+ {[%clk 0:00:05.5]}
69... Kd4 {[%clk 0:00:07.6]} 70. Nf1 {[%clk 0:00:05.8]} 70... Kd3 {[%clk
0:00:07.8]} 71. Ne3 {[%clk 0:00:05.5]} 71... Kd4 {[%clk 0:00:06.7]} 72. Nf1
{[%clk 0:00:05.1]} 72... Bd5 {[%clk 0:00:07]} 73. Ne3 {[%clk 0:00:05.5]} 73...
Ke4 {[%clk 0:00:07]} 74. Nf1 {[%clk 0:00:05.2]} 74... Be6 {[%clk 0:00:06.5]} 75.
Ne3 {[%clk 0:00:05.6]} 75... Bf7 {[%clk 0:00:05.7]} 76. Nf1 {[%clk 0:00:05.8]}
76... Bh5 {[%clk 0:00:05.5]} 77. Ne3 {[%clk 0:00:05.9]} 77... Bg4 {[%clk
0:00:05.2]} 78. Nc4 {[%clk 0:00:04.6]} 78... Bh3 {[%clk 0:00:05]} 79. Ne3 {[%clk
0:00:04]} 79... Kd4 {[%clk 0:00:04.9]} 80. Nd1 {[%clk 0:00:03.8]} 80... Kd3
{[%clk 0:00:04.9]} 81. Ne3 {[%clk 0:00:04]} 81... Ke4 {[%clk 0:00:05.2]} 82. Nd1
{[%clk 0:00:04.1]} 82... Kd4 {[%clk 0:00:04.7]} 83. Ne3 {[%clk 0:00:03.8]} 83...
Bg4 {[%clk 0:00:04.7]} 84. Nd1 {[%clk 0:00:03.7]} 84... Bxd1 {[%clk 0:00:04.2]}
0-1